fUST/lending_fUST_20240112
["ID","MTS","AMOUNT","RATE_DAILY","PERIOD"]
[311245572,1704993039398,-263.85621131,0.00023648,2]
[311245574,1704993039407,-166.666666,0.00023969,2]
[311245576,1704993039417,-614.12133667,0.00024,2]
[311245578,1704993039426,-4005.39956635,0.00024,2]
[311245580,1704993039436,-166.666666,0.00024482,2]
[311245582,1704993039446,-687.75702701,0.000247,2]
[311245584,1704993039456,-2097.96974047,0.00025,2]
[311245586,1704993039465,-4711.91259146,0.00025,2]
[311245588,1704993039476,-3000.0,0.00025,2]
[311245590,1704993039485,-677.25499859,0.00025,2]
[311245592,1704993039495,-200.0,0.00025894,7]
[311245594,1704993039504,-348.0,0.00025894,7]
[311245596,1704993039514,-525.99300196,0.00026,2]
[311245598,1704993039526,-1170.26729,0.00026549,2]
[311245600,1704993039535,-263.85621131,0.00026774,2]
[311245602,1704993039545,-3314.01740452,0.00027,2]
[311245604,1704993039555,-155.08219356,0.00027,7]
[311245606,1704993039564,-1008.0,0.00027,2]
[311245608,1704993039574,-9090.95951521,0.000273,4]
[311245610,1704993039583,-155.07753877,0.00027367,4]
[311245612,1704993039592,-501.00894022,0.000274,2]
[311245613,1704993039602,-305.07101819,0.00028,2]
[311245616,1704993039612,-483.61502924,0.00028,2]
[311245617,1704993039622,-721.70066033,0.00028036,2]
[311245619,1704993039632,-200.0,0.00028484,15]
[311245621,1704993039641,-200.0,0.00028484,15]
[311245623,1704993039650,-368.0,0.00028484,15]
[311245625,1704993039660,-406.00199115,0.00028584,2]
[311245627,1704993039669,-17116.78069245,0.00028627,3]
[311245629,1704993039679,-78938.25406817,0.000288,2]
[311245631,1704993039688,-500.0,0.00028999,2]
[311245633,1704993039698,-463.29911025,0.00028999,2]
[311245635,1704993039707,-500.0,0.00028999,2]
[311245637,1704993039717,-500.0,0.00028999,2]
[311245640,1704993039727,-500.0,0.00028999,2]
[311245642,1704993039736,-521.31144784,0.00028999,2]
[311245644,1704993039746,-500.0,0.00028999,2]
[311245645,1704993039755,-496.54641469,0.00028999,2]
[311245647,1704993039765,-500.0,0.00028999,2]
[311245649,1704993039774,-500.0,0.00028999,2]
[311245651,1704993039783,-500.0,0.00028999,2]
[311245653,1704993039793,-500.0,0.00028999,2]
[311245655,1704993039802,-405.26282019,0.00028999,2]
[311245657,1704993039812,-500.0,0.00028999,2]
[311245659,1704993039821,-500.0,0.00028999,2]
[311245661,1704993039830,-594.33363886,0.00028999,2]
[311245663,1704993039840,-500.0,0.00028999,2]
[311245665,1704993039850,-500.0,0.00028999,2]
[311245667,1704993039859,-500.0,0.00028999,2]
[311245669,1704993039868,-500.0,0.00028999,2]
[311245671,1704993039878,-500.0,0.00028999,2]
[311245673,1704993039887,-500.0,0.00028999,2]
[311245675,1704993039896,-500.0,0.00028999,2]
[311245677,1704993039906,-500.0,0.00028999,2]
[311245679,1704993039915,-500.0,0.00028999,2]
[311245680,1704993039924,-500.0,0.00028999,2]
[311245682,1704993039934,-500.0,0.00028999,2]
[311245684,1704993039943,-500.0,0.00028999,2]
[311245686,1704993039952,-532.35255693,0.00028999,2]
[311245688,1704993039961,-155.07753877,0.00029,2]
[311245690,1704993039971,-3025.449916,0.00029,2]
[311245692,1704993039980,-10370.2527947,0.00029,2]
[311245694,1704993039990,-44466.72270216,0.00029,2]
[311245696,1704993040000,-151.07553777,0.00029088,7]
[311245698,1704993040010,-156.51010021,0.000292,5]
[311245700,1704993040021,-156.51010021,0.000292,5]
[311245702,1704993040031,-156.51010021,0.000292,5]
[311245717,1704993040164,-156.51010021,0.000292,5]
[311245719,1704993040174,-156.51010021,0.000292,5]
[311245721,1704993040183,-156.51010021,0.000292,5]
[311245723,1704993040193,-156.51010021,0.000292,5]
[311245725,1704993040202,-156.51010021,0.000292,5]
[311245727,1704993040211,-156.51010021,0.000292,5]
[311245728,1704993040222,-156.51010021,0.000292,5]
[311245730,1704993040232,-156.51010021,0.000292,5]
[311245732,1704993040243,-156.51010021,0.000292,5]
[311245734,1704993040253,-156.51010021,0.000292,5]
[311245736,1704993040262,-156.51010021,0.000292,5]
[311245738,1704993040272,-156.51010021,0.000292,5]
[311245740,1704993040281,-156.51010021,0.000292,5]
[311245742,1704993040290,-156.51010021,0.000292,5]
[311245744,1704993040299,-156.51010021,0.000292,5]
[311245746,1704993040308,-156.51,0.000292,5]
[311245748,1704993040318,-594.7383808,0.000292,5]
[311245750,1704993040328,-594.7383808,0.000292,5]
[311245752,1704993040337,-594.7383808,0.000292,5]
[311245754,1704993040346,-594.7383808,0.000292,5]
[311245756,1704993040355,-594.7383808,0.000292,5]
[311245757,1704993040364,-594.7383808,0.000292,5]
[311245759,1704993040374,-594.7383808,0.000292,5]
[311245761,1704993040383,-594.7383808,0.000292,5]
[311245764,1704993040393,-594.7383808,0.000292,5]
[311245765,1704993040402,-594.7383808,0.000292,5]
[311245767,1704993040411,-594.7383808,0.000292,5]
[311245769,1704993040421,-594.7383808,0.000292,5]
[311245771,1704993040430,-594.7383808,0.000292,5]
[311245773,1704993040439,-594.7383808,0.000292,5]
[311245775,1704993040448,-594.7383808,0.000292,5]
[311245777,1704993040458,-594.7383808,0.000292,5]
[311245779,1704993040467,-594.7383808,0.000292,5]
[311245781,1704993040477,-198.1740105,0.000292,5]
[311245783,1704993040486,-49610.06269275,0.000293,5]
[311245785,1704993040496,-185.337782,0.00029311,2]
[311245787,1704993040505,-156.57326,0.00029311,2]
[311245788,1704993040515,-172.432806,0.00029311,2]
[311245790,1704993040524,-177.91992,0.00029311,2]
[311245792,1704993040533,-164.552346,0.00029311,2]
[311245794,1704993040542,-862.284012,0.00029311,2]
[311245796,1704993040551,-514.42667,0.00029311,2]
[311245798,1704993040560,-620.0070005,0.0002937,2]
[311245800,1704993040570,-594.7383808,0.000294,5]
[311245802,1704993040579,-862.284012,0.00029677,2]
[311245804,1704993040588,-514.42667,0.00029677,2]
[311245806,1704993040597,-151.07553777,0.00029682,4]
[311245808,1704993040606,-594.7383808,0.000297,5]
[311245810,1704993040615,-254.23001474,0.00029701,3]
[311245811,1704993040625,-37808.05296615,0.0002979,7]
[311245814,1704993040639,-263.85621131,0.000299,2]
[311245815,1704993040648,-463.46661998,0.0003,4]
[311245817,1704993040657,-6975.26133049,0.0003,4]
[311245819,1704993040666,-899.90173962,0.0003,2]
[311245821,1704993040674,-10528.61647802,0.0003,4]
[311245823,1704993040683,-6183.76397391,0.0003,2]
[311245825,1704993040692,-2188.79308094,0.0003,2]
[311245827,1704993040701,-155702.09869572,0.0003,2]
[311245829,1704993040710,-8912.47143386,0.0003,3]
[311245831,1704993040718,-3799.999999,0.0003,2]
[311245833,1704993040727,-22726.82712211,0.0003,3]
[311245835,1704993040736,-8035.64264101,0.0003,14]
[311245837,1704993040744,-36066.81272948,0.0003,10]
[311245839,1704993040754,-1000.18263852,0.0003,10]
[311245841,1704993040765,-18553.45565274,0.0003,2]
[311245843,1704993040773,-698.89862508,0.0003,2]
[311245845,1704993040782,-2151.8403773,0.0003,4]
[311245847,1704993040791,-686.8051383,0.0003,4]
[311245848,1704993040800,-639.80669723,0.0003,4]
[311245850,1704993040810,-163.55638359,0.0003,5]
[311245852,1704993040819,-244.50330111,0.0003,7]
[311245854,1704993040828,-1200.0,0.0003,4]
[311245856,1704993040837,-55552.1602185,0.0003,15]
[311245858,1704993040846,-2000.0,0.0003,2]
[311245860,1704993040855,-2000.0,0.0003,2]
[311245862,1704993040865,-1212.84892147,0.0003,2]
[311245864,1704993040876,-298.59057055,0.0003,2]
[311245866,1704993040885,-223.0,0.0003,2]
[311245868,1704993040895,-594.73,0.0003,5]
[311245870,1704993040905,-198.17,0.0003,5]
[311245872,1704993040913,-1468.73604047,0.0003,2]
[311245874,1704993040923,-2000.0,0.0003001,2]
[311245876,1704993040932,-2000.0,0.0003001,2]
[311245878,1704993040941,-2000.0,0.0003002,2]
[311245880,1704993040950,-2000.0,0.0003002,2]
[311245882,1704993040959,-2000.0,0.0003003,2]
[311245884,1704993040969,-2000.0,0.0003003,2]
[311245886,1704993040979,-38379.93475574,0.00030036,3]
[311245888,1704993040989,-2000.0,0.0003004,2]
[311245890,1704993040998,-2000.0,0.0003004,2]
[311245892,1704993041007,-862.284012,0.00030043,2]
[311245894,1704993041017,-514.42667,0.00030043,2]
[311245896,1704993041026,-177.91992,0.00030044,2]
[311245898,1704993041036,-2533.280176,0.0003005,2]
[311245900,1704993041045,-2000.0,0.0003005,2]
[311245902,1704993041054,-2000.0,0.0003006,2]
[311245904,1704993041063,-2000.0,0.0003007,2]
[311245906,1704993041073,-2000.0,0.0003008,2]
[311245908,1704993041082,-2000.0,0.0003009,2]
[311245910,1704993041091,-2000.0,0.000301,2]
[311245912,1704993041101,-300.0,0.000301,14]
[311245914,1704993041109,-2000.0,0.0003011,2]
[311245916,1704993041118,-2000.0,0.0003012,2]
[311245917,1704993041127,-197.37626976,0.0003013,2]
[311245919,1704993041137,-2000.0,0.0003013,2]
[311245921,1704993041146,-542.7422698,0.00030135,4]
[311245923,1704993041155,-394.26764578,0.00030135,4]
[311245925,1704993041164,-209.49,0.00030135,4]
[311245927,1704993041173,-500.0,0.00030135,4]
[311245929,1704993041182,-500.0,0.00030135,4]
[311245931,1704993041191,-282.94151477,0.00030135,4]
[311245933,1704993041200,-252.66944383,0.00030135,4]
[311245935,1704993041209,-507.22588862,0.00030135,4]
[311245937,1704993041219,-500.0,0.00030135,4]
[311245939,1704993041228,-500.0,0.00030135,4]
[311245941,1704993041237,-500.0,0.00030135,4]
[311245943,1704993041247,-500.0,0.00030135,4]
[311245945,1704993041256,-500.0,0.00030135,4]
[311245947,1704993041266,-500.0,0.00030135,4]
[311245949,1704993041275,-217.09690791,0.00030135,4]
[311245951,1704993041286,-500.0,0.00030136,2]
[311245953,1704993041295,-500.0,0.00030136,2]
[311245955,1704993041307,-500.0,0.00030136,2]
[311245957,1704993041316,-500.0,0.00030136,2]
[311245958,1704993041325,-500.0,0.00030136,2]
[311245959,1704993041334,-500.0,0.00030136,2]
[311245960,1704993041343,-500.0,0.00030136,2]
[311245961,1704993041352,-500.0,0.00030136,2]
[311245962,1704993041362,-500.0,0.00030136,2]
[311245963,1704993041372,-500.0,0.00030136,2]
[311245964,1704993041382,-500.0,0.00030136,2]
[311245965,1704993041391,-500.0,0.00030136,2]
[311245966,1704993041400,-505.49538568,0.00030136,2]
[311245967,1704993041410,-500.0,0.00030136,2]
[311245968,1704993041419,-503.18365884,0.00030136,2]
[311245969,1704993041428,-507.36864681,0.00030136,2]
[311245970,1704993041438,-500.0,0.00030136,2]
[311245971,1704993041447,-500.0,0.00030136,2]
[311245972,1704993041456,-500.0,0.00030136,2]
[311245973,1704993041466,-500.0,0.00030136,2]
[311245974,1704993041475,-500.0,0.00030136,2]
[311245975,1704993041484,-500.0,0.00030136,2]
[311245976,1704993041493,-500.0,0.00030136,2]
[311245977,1704993041503,-500.0,0.00030136,2]
[311245978,1704993041512,-500.0,0.00030136,2]
[311245980,1704993041522,-546.60647437,0.00030136,2]
[311245982,1704993041531,-500.0,0.00030136,2]
[311245984,1704993041541,-500.0,0.00030136,2]
[311245986,1704993041550,-500.0,0.00030136,2]
[311245988,1704993041559,-500.0,0.00030136,2]
[311245990,1704993041569,-500.0,0.00030136,2]
[311245992,1704993041578,-500.0,0.00030136,2]
[311245994,1704993041586,-500.0,0.00030136,2]
[311245996,1704993041595,-421.07384829,0.00030136,2]
[311245998,1704993041604,-162.80843152,0.00030136,2]
[311246000,1704993041613,-500.0,0.00030136,2]
[311246002,1704993041622,-500.0,0.00030136,2]
[311246003,1704993041633,-500.0,0.00030136,2]
[311246005,1704993041642,-500.0,0.00030136,2]
[311246007,1704993041651,-833.41,0.00030136,2]
[311246009,1704993041661,-503.69029425,0.00030136,2]
[311246011,1704993041670,-500.0,0.00030136,2]
[311246013,1704993041679,-500.0,0.00030136,2]
[311246016,1704993041688,-501.40685239,0.00030136,2]
[311246018,1704993041697,-500.0,0.00030136,2]
[311246020,1704993041707,-500.0,0.00030136,2]
[311246022,1704993041716,-500.0,0.00030136,2]
[311246024,1704993041724,-500.0,0.00030136,2]
[311246026,1704993041733,-500.0,0.00030136,2]
[311246028,1704993041742,-500.0,0.00030136,2]
[311246029,1704993041751,-515.14845484,0.00030136,2]
[311246032,1704993041760,-281.74517376,0.00030136,2]
[311246033,1704993041771,-384.12539335,0.00030136,2]
[311246036,1704993041781,-1000.0,0.00030136,2]
[311246037,1704993041790,-500.0,0.00030136,2]
[311246040,1704993041799,-500.0,0.00030136,2]
[311246041,1704993041808,-500.0,0.00030136,2]
[311246044,1704993041818,-500.0,0.00030136,2]
[311246046,1704993041826,-500.0,0.00030136,2]
[311246048,1704993041835,-500.55430526,0.00030136,2]
[311246049,1704993041845,-510.03142022,0.00030136,2]
[311246052,1704993041854,-500.0,0.00030136,2]
[311246054,1704993041863,-500.0,0.00030136,2]
[311246055,1704993041872,-509.18685247,0.00030136,2]
[311246057,1704993041881,-500.0,0.00030136,2]
[311246059,1704993041891,-500.0,0.00030136,2]
[311246061,1704993041900,-500.0,0.00030136,2]
[311246064,1704993041909,-500.0,0.00030136,2]
[311246066,1704993041918,-560.66390144,0.00030136,2]
[311246067,1704993041927,-503.56838718,0.00030136,2]
[311246070,1704993041936,-500.0,0.00030136,2]
[311246072,1704993041945,-500.0,0.00030136,2]
[311246074,1704993041954,-500.0,0.00030136,2]
[311246075,1704993041963,-500.0,0.00030136,2]
[311246077,1704993041973,-500.0,0.00030136,2]
[311246079,1704993041982,-500.0,0.00030136,2]
[311246082,1704993041991,-502.011769,0.00030136,2]
[311246084,1704993042000,-500.0,0.00030136,2]
[311246086,1704993042010,-412.25216866,0.00030136,2]
[311246088,1704993042020,-500.0,0.00030136,2]
[311246090,1704993042029,-500.0,0.00030136,2]
[311246092,1704993042039,-593.4206134,0.00030136,2]
[311246094,1704993042048,-504.3360633,0.00030136,2]
[311246096,1704993042057,-680.32,0.00030136,2]
[311246098,1704993042066,-504.99644365,0.00030136,30]
[311246100,1704993042075,-500.9535878,0.00030136,2]
[311246102,1704993042084,-500.0,0.00030136,2]
[311246104,1704993042093,-509.94278174,0.00030136,2]
[311246106,1704993042101,-500.0,0.00030136,2]
[311246108,1704993042111,-500.0,0.00030136,2]
[311246110,1704993042120,-500.0,0.00030136,2]
[311246112,1704993042129,-500.0,0.00030136,2]
[311246114,1704993042139,-500.0,0.00030136,2]
[311246116,1704993042148,-502.28052706,0.00030136,2]
[311246117,1704993042157,-500.0,0.00030136,2]
[311246120,1704993042167,-500.0,0.00030136,2]
[311246122,1704993042176,-500.0,0.00030136,2]
[311246124,1704993042185,-500.0,0.00030136,2]
[311246125,1704993042194,-500.0,0.00030136,2]
[311246127,1704993042203,-522.97859531,0.00030136,2]
[311246129,1704993042212,-500.0,0.00030136,2]
[311246131,1704993042221,-500.0,0.00030136,2]
[311246133,1704993042230,-500.0,0.00030136,2]
[311246135,1704993042239,-500.0,0.00030136,2]
[311246138,1704993042248,-500.0,0.00030136,2]
[311246140,1704993042257,-500.0,0.00030136,2]
[311246142,1704993042267,-500.0,0.00030136,2]
[311246144,1704993042276,-500.0,0.00030136,2]
[311246145,1704993042285,-500.0,0.00030136,2]
[311246147,1704993042295,-500.0,0.00030136,2]
[311246150,1704993042304,-186.76567446,0.00030136,2]
[311246151,1704993042314,-594.76805938,0.00030136,2]
[311246153,1704993042323,-500.0,0.00030136,2]
[311246155,1704993042332,-501.82843532,0.00030136,2]
[311246157,1704993042341,-500.0,0.00030136,2]
[311246160,1704993042351,-500.0,0.00030136,2]
[311246162,1704993042360,-500.0,0.00030136,2]
[311246164,1704993042370,-500.0,0.00030136,2]
[311246166,1704993042379,-500.0,0.00030136,2]
[311246168,1704993042388,-502.0635084,0.00030136,2]
[311246179,1704993042485,-170.19796657,0.00030136,2]
[311246181,1704993042495,-500.0,0.00030136,2]
[311246183,1704993042504,-500.0,0.00030136,2]
[311246185,1704993042513,-500.0,0.00030136,2]
[311246187,1704993042523,-500.0,0.00030136,2]
[311246189,1704993042533,-500.0,0.00030136,2]
[311246191,1704993042542,-556.77,0.00030136,2]
[311246193,1704993042551,-277.54315261,0.00030136,2]
[311246195,1704993042560,-500.0,0.00030136,2]
[311246197,1704993042569,-1000.0,0.00030136,2]
[311246199,1704993042578,-500.0,0.00030136,2]
[311246201,1704993042587,-500.0,0.00030136,2]
[311246203,1704993042596,-500.0,0.00030136,2]
[311246205,1704993042605,-500.0,0.00030136,2]
[311246207,1704993042614,-500.0,0.00030136,2]
[311246209,1704993042623,-315.45310074,0.00030136,2]
[311246211,1704993042632,-500.0,0.00030136,2]
[311246214,1704993042641,-500.0,0.00030136,2]
[311246217,1704993042650,-500.0,0.00030136,2]
[311246219,1704993042659,-500.0,0.00030136,2]
[311246220,1704993042667,-500.0,0.00030136,2]
[311246222,1704993042678,-500.0,0.00030136,2]
[311246224,1704993042687,-500.0,0.00030136,2]
[311246226,1704993042696,-500.0,0.00030136,2]
[311246228,1704993042705,-500.0,0.00030136,2]
[311246230,1704993042714,-500.0,0.00030136,2]
[311246233,1704993042723,-500.0,0.00030136,2]
[311246235,1704993042731,-500.0,0.00030136,2]
[311246237,1704993042741,-500.0,0.00030136,2]
[311246239,1704993042750,-500.0,0.00030136,2]
[311246241,1704993042759,-500.0,0.00030136,2]
[311246243,1704993042767,-500.0,0.00030136,2]
[311246246,1704993042778,-500.0,0.00030136,2]
[311246248,1704993042787,-270.6920062,0.00030136,2]
[311246250,1704993042796,-500.0,0.00030136,2]
[311246253,1704993042805,-341.22,0.00030136,2]
[311246255,1704993042814,-322.61788866,0.00030136,2]
[311246257,1704993042823,-500.0,0.00030136,2]
[311246258,1704993042832,-500.0,0.00030136,2]
[311246260,1704993042841,-500.0,0.00030136,2]
[311246262,1704993042850,-500.0,0.00030136,2]
[311246264,1704993042859,-503.69799777,0.00030136,2]
[311246266,1704993042869,-418.33957218,0.00030136,2]
[311246269,1704993042879,-511.70322812,0.00030136,2]
[311246271,1704993042888,-329.4052217,0.00030136,2]
[311246273,1704993042897,-642.73342,0.00030136,2]
[311246275,1704993042906,-501.48834983,0.00030136,2]
[311246276,1704993042915,-500.0,0.00030136,2]
[311246278,1704993042924,-503.44386902,0.00030136,2]
[311246281,1704993042933,-500.0,0.00030136,2]
[311246282,1704993042942,-500.0,0.00030136,2]
[311246284,1704993042951,-500.0,0.00030136,2]
[311246286,1704993042960,-500.0,0.00030136,2]
[311246288,1704993042969,-501.28748838,0.00030136,2]
[311246290,1704993042978,-500.0,0.00030136,2]
[311246292,1704993042987,-500.0,0.00030136,2]
[311246294,1704993042996,-1360.54,0.00030136,2]
[311246296,1704993043006,-500.0,0.00030136,2]
[311246298,1704993043015,-502.53708543,0.00030136,2]
[311246300,1704993043024,-500.0,0.00030136,2]
[311246302,1704993043034,-851.94,0.00030136,2]
[311246304,1704993043043,-554.04,0.00030136,2]
[311246306,1704993043052,-554.04,0.00030136,2]
[311246308,1704993043061,-500.0,0.00030136,2]
[311246310,1704993043070,-554.04,0.00030136,2]
[311246312,1704993043079,-554.04,0.00030136,2]
[311246314,1704993043088,-554.04,0.00030136,2]
[311246316,1704993043098,-554.04,0.00030136,2]
[311246318,1704993043107,-554.04,0.00030136,2]
[311246320,1704993043117,-554.04,0.00030136,2]
[311246322,1704993043126,-554.04,0.00030136,2]
[311246324,1704993043134,-554.04,0.00030136,2]
[311246326,1704993043144,-554.04,0.00030136,2]
[311246328,1704993043153,-554.04,0.00030136,2]
[311246330,1704993043163,-554.04,0.00030136,2]
[311246332,1704993043172,-554.04,0.00030136,2]
[311246334,1704993043182,-554.04,0.00030136,2]
[311246336,1704993043191,-554.04,0.00030136,2]
[311246339,1704993043201,-554.04,0.00030136,2]
[311246342,1704993043221,-554.04,0.00030136,2]
[311246344,1704993043231,-554.04,0.00030136,2]
[311246346,1704993043240,-500.0,0.00030136,2]
[311246348,1704993043250,-554.04,0.00030136,2]
[311246350,1704993043260,-554.04,0.00030136,2]
[311246352,1704993043271,-500.20971053,0.00030136,2]
[311246354,1704993043281,-554.04,0.00030136,2]
[311246356,1704993043291,-554.04,0.00030136,2]
[311246358,1704993043303,-554.19020902,0.00030136,2]
[311246360,1704993043312,-500.0,0.00030136,2]
[311246362,1704993043322,-600.0,0.00030136,2]
[311246364,1704993043334,-503.08297517,0.00030136,2]
[311246366,1704993043343,-500.0,0.00030136,2]
[311246368,1704993043353,-500.0,0.00030136,2]
[311246370,1704993043363,-500.0,0.00030136,2]
[311246372,1704993043373,-500.0,0.00030136,2]
[311246374,1704993043384,-500.0,0.00030136,2]
[311246376,1704993043393,-500.0,0.00030136,2]
[311246379,1704993043403,-226.98517404,0.00030136,2]
[311246381,1704993043413,-500.0,0.00030136,2]
[311246382,1704993043423,-500.0,0.00030136,2]
[311246385,1704993043432,-500.0,0.00030136,2]
[311246387,1704993043441,-500.0,0.00030136,2]
[311246389,1704993043451,-500.0,0.00030136,2]
[311246391,1704993043460,-1011.98987962,0.00030136,5]
[311246393,1704993043470,-500.0,0.00030136,2]
[311246395,1704993043479,-500.0,0.00030136,2]
[311246396,1704993043489,-500.0,0.00030136,2]
[311246399,1704993043498,-500.0,0.00030136,2]
[311246400,1704993043508,-500.0,0.00030136,2]
[311246402,1704993043519,-500.0,0.00030136,2]
[311246404,1704993043528,-500.0,0.00030136,2]
[311246407,1704993043538,-500.0,0.00030136,2]
[311246409,1704993043547,-500.0,0.00030136,2]
[311246411,1704993043560,-500.0,0.00030136,2]
[311246413,1704993043570,-508.57057146,0.00030136,2]
[311246415,1704993043579,-500.0,0.00030136,2]
[311246417,1704993043590,-500.0,0.00030136,2]
[311246419,1704993043599,-500.0,0.00030136,2]
[311246421,1704993043608,-500.0,0.00030136,2]
[311246423,1704993043617,-587.0,0.00030136,2]
[311246425,1704993043626,-500.0,0.00030136,2]
[311246427,1704993043636,-506.61528026,0.00030136,2]
[311246429,1704993043645,-225.87099317,0.00030136,2]
[311246431,1704993043654,-500.0,0.00030136,2]
[311246433,1704993043663,-500.0,0.00030136,2]
[311246435,1704993043672,-528.13,0.00030136,2]
[311246437,1704993043681,-500.0,0.00030136,2]
[311246439,1704993043691,-200.0,0.00030136,2]
[311246441,1704993043700,-500.0,0.00030136,2]
[311246443,1704993043709,-500.0,0.00030136,2]
[311246445,1704993043719,-500.0,0.00030136,2]
[311246447,1704993043728,-500.0,0.00030136,2]
[311246449,1704993043736,-500.0,0.00030136,2]
[311246451,1704993043745,-603.37503213,0.00030136,2]
[311246453,1704993043755,-500.0,0.00030136,2]
[311246455,1704993043764,-500.0,0.00030136,2]
[311246457,1704993043775,-500.0,0.00030136,2]
[311246459,1704993043784,-500.0,0.00030136,2]
[311246461,1704993043793,-500.0,0.00030136,2]
[311246463,1704993043802,-500.0,0.00030136,2]
[311246465,1704993043811,-500.0,0.00030136,2]
[311246467,1704993043820,-500.0,0.00030136,2]
[311246469,1704993043829,-500.0,0.00030136,2]
[311246471,1704993043838,-503.53888354,0.00030136,2]
[311246473,1704993043847,-500.0,0.00030136,2]
[311246475,1704993043856,-500.0,0.00030136,2]
[311246477,1704993043865,-655.66,0.00030136,2]
[311246479,1704993043874,-500.0,0.00030136,2]
[311246481,1704993043884,-500.0,0.00030136,2]
[311246483,1704993043893,-500.0,0.00030136,2]
[311246485,1704993043902,-500.0,0.00030136,2]
[311246487,1704993043912,-500.0,0.00030136,2]
[311246489,1704993043921,-579.67,0.00030136,2]
[311246491,1704993043931,-501.00207667,0.00030136,2]
[311246493,1704993043940,-500.0,0.00030136,2]
[311246495,1704993043949,-500.0,0.00030136,2]
[311246497,1704993043958,-500.0,0.00030136,2]
[311246499,1704993043967,-500.0,0.00030136,2]
[311246501,1704993043976,-500.0,0.00030136,2]
[311246503,1704993043985,-500.0,0.00030136,2]
[311246505,1704993043995,-303.4997889,0.00030136,2]
[311246507,1704993044004,-500.0,0.00030136,2]
[311246509,1704993044013,-500.0,0.00030136,2]
[311246511,1704993044023,-500.0,0.00030136,2]
[311246513,1704993044032,-500.0,0.00030136,2]
[311246515,1704993044041,-500.0,0.00030136,2]
[311246517,1704993044050,-500.0,0.00030136,2]
[311246519,1704993044059,-633.44866808,0.00030136,2]
[311246521,1704993044068,-14199.19,0.00030136,2]
[311246523,1704993044077,-500.0,0.00030136,2]
[311246525,1704993044086,-330.37774473,0.00030136,2]
[311246528,1704993044096,-500.0,0.00030136,2]
[311246530,1704993044105,-500.0,0.00030136,2]
[311246532,1704993044114,-500.0,0.00030136,2]
[311246534,1704993044123,-500.0,0.00030136,2]
[311246536,1704993044132,-500.0,0.00030136,2]
[311246538,1704993044141,-500.0,0.00030136,2]
[311246540,1704993044150,-637.94,0.00030136,2]
[311246542,1704993044160,-500.0,0.00030136,2]
[311246544,1704993044169,-500.0,0.00030136,2]
[311246546,1704993044178,-500.0,0.00030136,2]
[311246548,1704993044186,-500.0,0.00030136,2]
[311246549,1704993044196,-500.0,0.00030136,2]
[311246550,1704993044205,-500.0,0.00030136,2]
[311246551,1704993044214,-500.0,0.00030136,2]
[311246552,1704993044224,-500.0,0.00030136,2]
[311246553,1704993044233,-408.77456977,0.00030136,2]
[311246555,1704993044242,-507.68147259,0.00030136,2]
[311246557,1704993044252,-4613.25,0.00030136,2]
[311246559,1704993044261,-1294.21,0.00030136,2]
[311246561,1704993044271,-502.49872204,0.00030136,2]
[311246562,1704993044281,-2836.12,0.00030136,2]
[311246564,1704993044290,-503.24922674,0.00030136,2]